[Event "NED-ch U20 Girls 2018"]
[Site "Assen"]
[Date "2018.05.02"]
[Round "2"]
[White "Warnaar, Alisha"]
[Black "Woest, Imre"]
[Result "1-0"]
[ECO "C03"]
[WhiteElo "1647"]
[BlackElo "1418"]
[Annotator "NA RC"]
[PlyCount "35"]
[EventDate "2018.??.??"]
[EventType "swiss"]
[EventCountry "NED"]
[SourceTitle "playchess.com"]
[Source "ChessBase"]
[SourceQuality "1"]
[TimeControl "5400+30"]

1. e4 {[%emt 0:00:00]} e6 {[%emt 0:00:04]} 2. d4 {[%emt 0:00:00]} d5 {[%emt 0:00:04]} 3. Nd2 {[%emt 0:00:00]} Ne7 {[%emt 0:03:53]} 4. c3 {[%emt 0:01:23]} Bd7 {[%emt 0:02:23]} 5. Bd3 {[%emt 0:01:07]} Ng6 {[%emt 0:01:18]} 6. Ne2 {[%emt 0:01:09]} dxe4 {[%emt 0:04:41]} 7. Nxe4 {[%emt 0:02:50]} Bc6 {[%emt 0:03:06]} 8. O-O {[%emt 0:01:01]} Bd6 {[%emt 0:02:37]} 9. f4 {[%emt 0:07:55]} Nd7 {[%emt 0:11:09]} 10. N2g3 {[%emt 0:08:37]} Qh4 {[%emt 0:04:53]} 11. Nxd6+ {[%emt 0:02:11]} cxd6 {[%emt 0:00:26]} 12. f5 {[%emt 0:01:15]} Ngf8 {[%emt 0:03:09]} 13. fxe6 {[%emt 0:04:23]} Nxe6 {[%emt 0:00:20]} 14. Nf5 {[%emt 0:00:37]} Qd8 {[%emt 0:02:07]} 15. Nxd6+ {[%emt 0:02:14]} Ke7 {[%emt 0:01:31]} 16. Nxf7 {[%emt 0:00:27]} Qb6 {[%emt 0:05:43]} 17. Nxh8 {[%emt 0:00:39]} Rxh8 {[%emt 0:00:38]} 18. Qe1 {[%emt 0:03:46]} 1-0

[Event "NED-ch U20 Girls 2018"]
[Site "Assen"]
[Date "2018.05.02"]
[Round "2"]
[White "Monteny, Pascalle"]
[Black "Duson, Robin"]
[Result "0-1"]
[ECO "B26"]
[WhiteElo "1446"]
[BlackElo "1920"]
[Annotator "NA RC"]
[PlyCount "138"]
[EventDate "2018.??.??"]
[EventType "swiss"]
[EventCountry "NED"]
[SourceTitle "playchess.com"]
[Source "ChessBase"]
[SourceQuality "1"]
[TimeControl "5400+30"]

1. e4 {[%emt 0:00:00]} c5 {[%emt 0:00:08]} 2. Nc3 {[%emt 0:00:00]} Nc6 {[%emt 0:00:21]} 3. g3 {[%emt 0:00:23]} g6 {[%emt 0:00:40]} 4. Bg2 {[%emt 0:00:19]} Bg7 {[%emt 0:00:20]} 5. d3 {[%emt 0:00:30]} e6 {[%emt 0:01:02]} 6. Be3 {[%emt 0:02:11]} d6 {[%emt 0:00:32]} 7. Qd2 {[%emt 0:01:00]} Nd4 {[%emt 0:04:06]} 8. Nge2 {[%emt 0:04:21]} Ne7 {[%emt 0:01:16]} 9. O-O {[%emt 0:04:57]} O-O {[%emt 0:03:05]} 10. Nd1 {[%emt 0:05:01]} Qc7 {[%emt 0:18:17]} 11. c3 {[%emt 0:10:01]} Nxe2+ {[%emt 0:00:26]} 12. Qxe2 {[%emt 0:00:09]} Nc6 {[%emt 0:10:00]} 13. f4 {[%emt 0:05:15]} Rb8 {[%emt 0:13:13]} 14. g4 {[%emt 0:09:11]} f5 {[%emt 0:06:14]} 15. g5 {[%emt 0:06:03]} e5 {[%emt 0:03:53]} 16. h4 {[%emt 0:03:54]} fxe4 {[%emt 0:02:32]} 17. dxe4 {[%emt 0:02:18]} Be6 {[%emt 0:02:05]} 18. h5 {[%emt 0:12:16]} exf4 {[%emt 0:03:01]} 19. Bxf4 {[%emt 0:02:00]} Be5 {[%emt 0:02:07]} 20. Bxe5 {[%emt 0:02:57]} Nxe5 {[%emt 0:01:07]} 21. Ne3 {[%emt 0:00:58]} Qe7 {[%emt 0:02:36]} 22. hxg6 {[%emt 0:10:21]} hxg6 {[%emt 0:00:31]} 23. Rf6 {[%emt 0:06:47]} Rxf6 {[%emt 0:00:48]} 24. gxf6 {[%emt 0:00:04]} Qxf6 {[%emt 0:24:10]} 25. Rf1 {[%emt 0:01:35]} Qh4 {[%emt 0:00:00]} 26. b3 {[%emt 0:04:15]} Kg7 {[%emt 0:00:00]} 27. Qf2 {[%emt 0:02:42]} Qxf2+ {[%emt 0:00:00]} 28. Rxf2 {[%emt 0:00:34]} b6 {[%emt 0:00:00]} 29. Rd2 {[%emt 0:01:01]} Rd8 {[%emt 0:00:00]} 30. Nc2 {[%emt 0:00:56]} Kf6 {[%emt 0:00:00]} 31. Na3 {[%emt 0:01:57]} a6 {[%emt 0:00:00]} 32. Kf2 {[%emt 0:00:50]} Ke7 {[%emt 0:00:00]} 33. Kg3 {[%emt 0:00:33]} g5 {[%emt 0:00:00]} 34. Nc2 {[%emt 0:00:41]} b5 {[%emt 0:00:00]} 35. Ne3 {[%emt 0:00:29]} a5 {[%emt 0:00:00]} 36. Nf5+ {[%emt 0:00:54]} Bxf5 {[%emt 0:00:00]} 37. exf5 {[%emt 0:00:01]} Kf6 {[%emt 0:00:00]} 38. Be4 {[%emt 0:00:32]} b4 {[%emt 0:05:14]} 39. c4 {[%emt 0:00:44]} Nf7 {[%emt 0:00:59]} 40. Rh2 {[%emt 0:00:45]} Re8 {[%emt 0:00:57]} 41. Bc2 {[%emt 0:00:00]} Re3+ {[%emt 0:00:00]} 42. Kf2 {[%emt 0:00:00]} Rc3 {[%emt 0:00:00]} 43. Ke1 {[%emt 0:00:00]} g4 {[%emt 0:00:00]} 44. Kd2 {[%emt 0:00:00]} g3 {[%emt 0:00:00]} 45. Rg2 {[%emt 0:00:00]} Nh6 {[%emt 0:00:00]} 46. Rg1 {[%emt 0:02:16]} Kg5 {[%emt 0:00:00]} 47. Rf1 {[%emt 0:01:10]} g2 {[%emt 0:00:00]} 48. Rg1 {[%emt 0:00:15]} Rg3 {[%emt 0:00:00]} 49. Be4 {[%emt 0:00:42]} Nxf5 {[%emt 0:00:00]} 50. Rxg2 {[%emt 0:00:23]} Kf4 {[%emt 0:00:00]} 51. Rxg3 {[%emt 0:00:15]} Nxg3 {[%emt 0:00:00]} 52. Bd3 {[%emt 0:00:51]} Ne4+ {[%emt 0:00:00]} 53. Bxe4 {[%emt 0:00:31]} Kxe4 {[%emt 0:00:00]} 54. Ke2 {[%emt 0:00:14]} Kd4 {[%emt 0:00:00]} 55. Kd2 {[%emt 0:00:05]} a4 {[%emt 0:00:00]} 56. Kc2 {[%emt 0:00:38]} axb3+ {[%emt 0:00:00]} 57. axb3 {[%emt 0:00:38]} Ke3 {[%emt 0:00:00]} 58. Kc1 {[%emt 0:00:58]} Kd3 {[%emt 0:00:00]} 59. Kb1 {[%emt 0:00:33]} Kc3 {[%emt 0:00:00]} 60. Ka2 {[%emt 0:00:02]} Kc2 {[%emt 0:00:00]} 61. Ka1 {[%emt 0:00:08]} Kxb3 {[%emt 0:00:00]} 62. Kb1 {[%emt 0:00:05]} Kxc4 {[%emt 0:00:00]} 63. Kc2 {[%emt 0:01:21]} b3+ {[%emt 0:00:00]} 64. Kb2 {[%emt 0:00:21]} d5 {[%emt 0:00:00]} 65. Kb1 {[%emt 0:00:55]} d4 {[%emt 0:00:00]} 66. Kc1 {[%emt 0:00:37]} d3 {[%emt 0:00:00]} 67. Kb1 {[%emt 0:00:27]} d2 {[%emt 0:00:00]} 68. Kb2 {[%emt 0:00:13]} d1=Q {[%emt 0:00:00]} 69. Ka3 {[%emt 0:00:14]} Qa1# {[%emt 0:00:00]} 0-1

[Event "NED-ch U20 Girls 2018"]
[Site "Assen"]
[Date "2018.05.02"]
[Round "3"]
[White "Duson, Robin"]
[Black "Verhoeff, Timardi"]
[Result "1-0"]
[ECO "C11"]
[WhiteElo "1920"]
[BlackElo "1911"]
[Annotator "NA RC"]
[PlyCount "103"]
[EventDate "2018.??.??"]
[EventType "swiss"]
[EventCountry "NED"]
[SourceTitle "playchess.com"]
[Source "ChessBase"]
[SourceQuality "1"]
[TimeControl "5400+30"]

1. e4 {[%emt 0:00:00]} e6 {[%emt 0:00:04]} 2. d4 {[%emt 0:00:00]} d5 {[%emt 0:00:07]} 3. Nc3 {[%emt 0:00:14]} Nf6 {[%emt 0:00:07]} 4. e5 {[%emt 0:00:21]} Nfd7 {[%emt 0:00:08]} 5. f4 {[%emt 0:00:22]} c5 {[%emt 0:00:08]} 6. Nf3 {[%emt 0:00:18]} Nc6 {[%emt 0:00:07]} 7. Be3 {[%emt 0:00:15]} a6 {[%emt 0:00:19]} 8. Qd2 {[%emt 0:01:44]} b5 {[%emt 0:00:13]} 9. dxc5 {[%emt 0:02:35]} Bxc5 {[%emt 0:00:10]} 10. Bxc5 {[%emt 0:06:41]} Nxc5 {[%emt 0:00:06]} 11. Bd3 {[%emt 0:04:05]} b4 {[%emt 0:02:25]} 12. Ne2 {[%emt 0:01:15]} Nxd3+ {[%emt 0:02:57]} 13. cxd3 {[%emt 0:06:02]} Qb6 {[%emt 0:20:13]} 14. b3 {[%emt 0:07:34]} a5 {[%emt 0:03:30]} 15. Nc1 {[%emt 0:05:19]} Ba6 {[%emt 0:34:29]} 16. Qf2 {[%emt 0:01:38]} Qxf2+ {[%emt 0:01:03]} 17. Kxf2 {[%emt 0:00:14]} Ke7 {[%emt 0:02:24]} 18. Ke3 {[%emt 0:01:47]} Rhc8 {[%emt 0:00:46]} 19. Ne2 {[%emt 0:01:56]} Rc7 {[%emt 0:02:43]} 20. Rac1 {[%emt 0:03:39]} Rac8 {[%emt 0:03:27]} 21. Rc5 {[%emt 0:02:15]} Kd8 {[%emt 0:06:26]} 22. g4 {[%emt 0:04:15]} Nxe5 {[%emt 0:03:28]} 23. Rxa5 {[%emt 0:02:37]} Nxg4+ {[%emt 0:00:32]} 24. Kd4 {[%emt 0:01:16]} Bxd3 {[%emt 0:00:43]} 25. Ng3 {[%emt 0:02:22]} Bg6 {[%emt 0:03:12]} 26. f5 {[%emt 0:01:49]} Bxf5 {[%emt 0:01:58]} 27. Nxf5 {[%emt 0:00:39]} exf5 {[%emt 0:00:04]} 28. Rxd5+ {[%emt 0:00:43]} Rd7 {[%emt 0:00:17]} 29. Rxd7+ {[%emt 0:01:10]} Kxd7 {[%emt 0:00:03]} 30. h3 {[%emt 0:00:28]} Nf6 {[%emt 0:02:27]} 31. Ne5+ {[%emt 0:01:57]} Ke7 {[%emt 0:00:59]} 32. Nd3 {[%emt 0:00:32]} Rd8+ {[%emt 0:03:59]} 33. Kc4 {[%emt 0:00:47]} Nd5 {[%emt 0:01:18]} 34. Nxb4 {[%emt 0:00:35]} Nxb4 {[%emt 0:01:53]} 35. Kxb4 {[%emt 0:00:07]} f4 {[%emt 0:00:44]} 36. a4 {[%emt 0:01:35]} g5 {[%emt 0:00:43]} 37. a5 {[%emt 0:01:39]} Rb8+ {[%emt 0:01:50]} 38. Kc4 {[%emt 0:01:38]} Rc8+ {[%emt 0:00:24]} 39. Kd5 {[%emt 0:02:10]} Kd7 {[%emt 0:01:58]} 40. b4 {[%emt 0:01:14]} Rb8 {[%emt 0:00:58]} 41. Kc5 {[%emt 0:04:50]} h5 {[%emt 0:00:00]} 42. a6 {[%emt 0:00:00]} Re8 {[%emt 0:00:00]} 43. b5 {[%emt 0:00:00]} Kc8 {[%emt 0:00:00]} 44. Rd1 {[%emt 0:00:00]} f3 {[%emt 0:00:24]} 45. b6 {[%emt 0:00:00]} Re5+ {[%emt 0:00:38]} 46. Kc6 {[%emt 0:00:00]} Re6+ {[%emt 0:00:12]} 47. Kc5 {[%emt 0:00:00]} f2 {[%emt 0:01:18]} 48. a7 {[%emt 0:00:00]} Re5+ {[%emt 0:00:53]} 49. Kb4 {[%emt 0:00:00]} Kb7 {[%emt 0:00:47]} 50. Rd7+ {[%emt 0:00:00]} Kxb6 {[%emt 0:00:38]} 51. a8=Q {[%emt 0:00:00]} Rb5+ {[%emt 0:00:27]} 52. Ka4 {[%emt 0:00:09]} 1-0

[Event "NED-ch U20 Girls 2018"]
[Site "Assen"]
[Date "2018.05.02"]
[Round "3"]
[White "Martinez, Anna"]
[Black "Den Dunnen, Lola"]
[Result "1-0"]
[ECO "C26"]
[WhiteElo "1795"]
[BlackElo "1912"]
[Annotator "NA RC"]
[PlyCount "51"]
[EventDate "2018.??.??"]
[EventType "swiss"]
[EventCountry "NED"]
[SourceTitle "playchess.com"]
[Source "ChessBase"]
[SourceQuality "1"]
[TimeControl "5400+30"]

1. e4 {[%emt 0:00:00]} e5 {[%emt 0:00:23]} 2. Nc3 {[%emt 0:00:00]} Nf6 {[%emt 0:01:09]} 3. g3 {[%emt 0:00:00]} Nc6 {[%emt 0:02:31]} 4. Bg2 {[%emt 0:00:00]} d6 {[%emt 0:05:22]} 5. Nge2 {[%emt 0:03:32]} Be7 {[%emt 0:05:35]} 6. O-O {[%emt 0:03:34]} h5 {[%emt 0:04:23]} 7. h3 {[%emt 0:00:21]} h4 {[%emt 0:07:00]} 8. g4 {[%emt 0:01:30]} Nxg4 {[%emt 0:08:18]} 9. hxg4 {[%emt 0:02:02]} Bxg4 {[%emt 0:02:15]} 10. f3 {[%emt 0:00:42]} Bd7 {[%emt 0:03:24]} 11. Kh2 {[%emt 0:02:38]} g5 {[%emt 0:04:11]} 12. Ng1 {[%emt 0:03:26]} h3 {[%emt 0:02:15]} 13. Bh1 {[%emt 0:00:29]} Nd4 {[%emt 0:08:32]} 14. Nd5 {[%emt 0:11:29]} f5 {[%emt 0:06:08]} 15. c3 {[%emt 0:03:57]} Nxf3+ {[%emt 0:02:05]} 16. Bxf3 {[%emt 0:01:00]} g4 {[%emt 0:00:10]} 17. exf5 {[%emt 0:01:01]} g3+ {[%emt 0:03:59]} 18. Kxg3 {[%emt 0:01:36]} Bh4+ {[%emt 0:02:48]} 19. Kh2 {[%emt 0:01:28]} c6 {[%emt 0:05:26]} 20. Bh5+ {[%emt 0:00:20]} Kf8 {[%emt 0:00:13]} 21. Ne3 {[%emt 0:00:57]} Qg5 {[%emt 0:02:41]} 22. Bg4 {[%emt 0:00:57]} Bg3+ {[%emt 0:03:34]} 23. Kxg3 {[%emt 0:01:24]} h2 {[%emt 0:00:04]} 24. Nh3 {[%emt 0:00:06]} Qh4+ {[%emt 0:01:15]} 25. Kxh2 {[%emt 0:00:04]} Kf7 {[%emt 0:00:40]} 26. Qf3 {[%emt 0:00:09]} 1-0

[Event "NED-ch U20 Girls 2018"]
[Site "Assen"]
[Date "2018.05.02"]
[Round "3"]
[White "Naber, Quirine"]
[Black "Warnaar, Alisha"]
[Result "1/2-1/2"]
[ECO "B52"]
[WhiteElo "1775"]
[BlackElo "1647"]
[Annotator "NA RC"]
[PlyCount "85"]
[EventDate "2018.??.??"]
[EventType "swiss"]
[EventCountry "NED"]
[SourceTitle "playchess.com"]
[Source "ChessBase"]
[SourceQuality "1"]
[TimeControl "5400+30"]

1. e4 {[%emt 0:00:00]} c5 {[%emt 0:00:16]} 2. Nf3 {[%emt 0:00:00]} d6 {[%emt 0:00:10]} 3. Bb5+ {[%emt 0:00:00]} Bd7 {[%emt 0:00:08]} 4. Bxd7+ {[%emt 0:00:00]} Qxd7 {[%emt 0:00:08]} 5. O-O {[%emt 0:00:00]} Nc6 {[%emt 0:00:23]} 6. c3 {[%emt 0:00:02]} e6 {[%emt 0:03:39]} 7. d4 {[%emt 0:00:16]} cxd4 {[%emt 0:00:47]} 8. cxd4 {[%emt 0:00:04]} d5 {[%emt 0:01:39]} 9. e5 {[%emt 0:01:14]} f6 {[%emt 0:07:03]} 10. Re1 {[%emt 0:07:36]} fxe5 {[%emt 0:22:22]} 11. Nxe5 {[%emt 0:01:31]} Nxe5 {[%emt 0:00:19]} 12. Rxe5 {[%emt 0:00:06]} Bd6 {[%emt 0:00:12]} 13. Re1 {[%emt 0:00:04]} O-O-O {[%emt 0:06:36]} 14. Nd2 {[%emt 0:07:36]} Nf6 {[%emt 0:01:38]} 15. Nf3 {[%emt 0:00:38]} Rde8 {[%emt 0:00:53]} 16. Ne5 {[%emt 0:02:54]} Qe7 {[%emt 0:01:36]} 17. Bg5 {[%emt 0:11:54]} Rhg8 {[%emt 0:05:31]} 18. Qb3 {[%emt 0:03:06]} b6 {[%emt 0:06:27]} 19. a4 {[%emt 0:02:56]} h6 {[%emt 0:05:21]} 20. Bf4 {[%emt 0:24:14]} g5 {[%emt 0:02:47]} 21. Nc6 {[%emt 0:02:47]} Qd7 {[%emt 0:02:02]} 22. Bxd6 {[%emt 0:02:51]} Qxd6 {[%emt 0:01:06]} 23. Nxa7+ {[%emt 0:00:28]} Kb7 {[%emt 0:00:12]} 24. Nb5 {[%emt 0:00:14]} Qf4 {[%emt 0:00:09]} 25. a5 {[%emt 0:03:36]} Ng4 {[%emt 0:01:19]} 26. a6+ {[%emt 0:00:29]} Ka8 {[%emt 0:01:56]} 27. Qg3 {[%emt 0:01:00]} Qxg3 {[%emt 0:01:24]} 28. hxg3 {[%emt 0:00:09]} Re7 {[%emt 0:02:37]} 29. Rxe6 {[%emt 0:00:38]} Rxe6 {[%emt 0:00:10]} 30. Nc7+ {[%emt 0:00:02]} Ka7 {[%emt 0:00:08]} 31. Nxe6 {[%emt 0:00:04]} Rc8 {[%emt 0:01:02]} 32. f3 {[%emt 0:13:41]} Ne3 {[%emt 0:03:53]} 33. Ra3 {[%emt 0:08:17]} Rc1+ {[%emt 0:04:54]} 34. Kh2 {[%emt 0:00:09]} Nc4 {[%emt 0:00:48]} 35. Rc3 {[%emt 0:00:44]} Rb1 {[%emt 0:00:18]} 36. Nc7 {[%emt 0:02:49]} Nxb2 {[%emt 0:01:49]} 37. Nxd5 {[%emt 0:03:03]} Nd1 {[%emt 0:00:41]} 38. Rc6 {[%emt 0:01:28]} g4 {[%emt 0:00:21]} 39. Rc2 {[%emt 0:00:21]} h5 {[%emt 0:01:06]} 40. Nc3 {[%emt 0:01:54]} Nxc3 {[%emt 0:02:21]} 41. Rxc3 {[%emt 0:00:04]} Rd1 {[%emt 0:00:08]} 42. Rc7+ {[%emt 0:00:00]} Kxa6 {[%emt 0:00:00]} 43. Rh7 {[%emt 0:00:00]} 1/2-1/2

[Event "NED-ch U20 Girls 2018"]
[Site "Assen"]
[Date "2018.05.02"]
[Round "3"]
[White "Waardenburg, Marlinde"]
[Black "Adema, Marrit"]
[Result "0-1"]
[ECO "B23"]
[WhiteElo "1686"]
[BlackElo "1497"]
[Annotator "NA RC"]
[PlyCount "112"]
[EventDate "2018.??.??"]
[EventType "swiss"]
[EventCountry "NED"]
[SourceTitle "playchess.com"]
[Source "ChessBase"]
[SourceQuality "1"]
[TimeControl "5400+30"]

1. e4 {[%emt 0:00:00]} c5 {[%emt 0:00:05]} 2. Nc3 {[%emt 0:00:00]} g6 {[%emt 0:00:10]} 3. f4 {[%emt 0:00:00]} Bg7 {[%emt 0:00:13]} 4. Nf3 {[%emt 0:00:08]} Nc6 {[%emt 0:00:24]} 5. Bc4 {[%emt 0:00:58]} e6 {[%emt 0:00:26]} 6. d3 {[%emt 0:01:15]} Nge7 {[%emt 0:00:19]} 7. O-O {[%emt 0:01:22]} O-O {[%emt 0:00:06]} 8. Qe1 {[%emt 0:03:12]} Na5 {[%emt 0:00:42]} 9. a3 {[%emt 0:14:33]} Nxc4 {[%emt 0:04:02]} 10. dxc4 {[%emt 0:00:10]} b6 {[%emt 0:07:15]} 11. Be3 {[%emt 0:16:09]} Nc6 {[%emt 0:10:10]} 12. Rd1 {[%emt 0:05:31]} Qe7 {[%emt 0:03:54]} 13. f5 {[%emt 0:05:00]} a6 {[%emt 0:03:59]} 14. Ng5 {[%emt 0:10:31]} Ne5 {[%emt 0:08:45]} 15. b3 {[%emt 0:05:02]} Bb7 {[%emt 0:05:29]} 16. Bf4 {[%emt 0:04:12]} Bc6 {[%emt 0:07:49]} 17. Qf2 {[%emt 0:07:05]} h6 {[%emt 0:05:17]} 18. Nf3 {[%emt 0:02:24]} Nxf3+ {[%emt 0:01:42]} 19. Qxf3 {[%emt 0:01:12]} Bd4+ {[%emt 0:01:47]} 20. Kh1 {[%emt 0:01:45]} exf5 {[%emt 0:02:14]} 21. Bxh6 {[%emt 0:08:18]} fxe4 {[%emt 0:01:59]} 22. Qg3 {[%emt 0:03:03]} Rfe8 {[%emt 0:02:41]} 23. Ne2 {[%emt 0:01:40]} Bg7 {[%emt 0:02:54]} 24. Bxg7 {[%emt 0:02:10]} Kxg7 {[%emt 0:00:10]} 25. Nf4 {[%emt 0:00:23]} Qe5 {[%emt 0:04:33]} 26. Qg4 {[%emt 0:02:14]} Rad8 {[%emt 0:05:31]} 27. h3 {[%emt 0:02:38]} b5 {[%emt 0:03:25]} 28. Ne2 {[%emt 0:00:45]} d5 {[%emt 0:02:02]} 29. cxd5 {[%emt 0:01:05]} Rxd5 {[%emt 0:01:44]} 30. Rxd5 {[%emt 0:00:55]} Bxd5 {[%emt 0:01:44]} 31. Qh4 {[%emt 0:00:52]} c4 {[%emt 0:01:22]} 32. Nf4 {[%emt 0:00:33]} cxb3 {[%emt 0:02:06]} 33. cxb3 {[%emt 0:00:36]} Bxb3 {[%emt 0:00:50]} 34. Qf2 {[%emt 0:00:25]} Bc4 {[%emt 0:01:45]} 35. Re1 {[%emt 0:00:05]} e3 {[%emt 0:03:32]} 36. Qf3 {[%emt 0:00:05]} Qc3 {[%emt 0:00:59]} 37. Qg3 {[%emt 0:00:56]} Qe5 {[%emt 0:02:35]} 38. Qf3 {[%emt 0:00:08]} Qc5 {[%emt 0:01:15]} 39. Qg3 {[%emt 0:01:09]} a5 {[%emt 0:01:18]} 40. Qf3 {[%emt 0:00:56]} Qxa3 {[%emt 0:01:34]} 41. Qc6 {[%emt 0:00:00]} Re7 {[%emt 0:00:00]} 42. Qf3 {[%emt 0:00:00]} Qc3 {[%emt 0:00:00]} 43. Qg3 {[%emt 0:00:00]} Qe5 {[%emt 0:00:00]} 44. Qg4 {[%emt 0:00:00]} a4 {[%emt 0:00:00]} 45. h4 {[%emt 0:00:00]} Qf5 {[%emt 0:00:00]} 46. Qg3 {[%emt 0:00:00]} Re4 {[%emt 0:00:00]} 47. Nh3 {[%emt 0:00:00]} e2 {[%emt 0:00:00]} 48. Qc3+ {[%emt 0:00:00]} Qf6 {[%emt 0:00:00]} 49. Qxf6+ {[%emt 0:00:00]} Kxf6 {[%emt 0:00:00]} 50. Kg1 {[%emt 0:00:00]} Rxh4 {[%emt 0:00:00]} 51. Kf2 {[%emt 0:00:00]} Re4 {[%emt 0:00:00]} 52. g3 {[%emt 0:00:00]} Re5 {[%emt 0:00:00]} 53. Nf4 {[%emt 0:00:00]} Ke7 {[%emt 0:00:00]} 54. Nxe2 {[%emt 0:00:00]} Rxe2+ {[%emt 0:00:00]} 55. Rxe2+ {[%emt 0:00:00]} Bxe2 {[%emt 0:00:00]} 56. Kxe2 {[%emt 0:00:04]} a3 {[%emt 0:00:00]} 0-1

[Event "NED-ch U20 Girls 2018"]
[Site "Assen"]
[Date "2018.05.02"]
[Round "3"]
[White "Tiggelman, Laura"]
[Black "Waardenburg, Feline"]
[Result "0-1"]
[ECO "B12"]
[WhiteElo "1536"]
[BlackElo "1737"]
[Annotator "NA RC"]
[PlyCount "34"]
[EventDate "2018.??.??"]
[EventType "swiss"]
[EventCountry "NED"]
[SourceTitle "playchess.com"]
[Source "ChessBase"]
[SourceQuality "1"]
[TimeControl "5400+30"]

1. e4 {[%emt 0:00:00]} c6 {[%emt 0:00:04]} 2. d4 {[%emt 0:00:00]} d5 {[%emt 0:00:03]} 3. e5 {[%emt 0:00:00]} Bf5 {[%emt 0:00:07]} 4. Nc3 {[%emt 0:00:00]} e6 {[%emt 0:00:21]} 5. g4 {[%emt 0:00:00]} Bg6 {[%emt 0:00:19]} 6. Nge2 {[%emt 0:00:08]} Nd7 {[%emt 0:03:37]} 7. h4 {[%emt 0:00:59]} c5 {[%emt 0:06:26]} 8. f4 {[%emt 0:35:19]} h5 {[%emt 0:04:06]} 9. f5 {[%emt 0:05:56]} exf5 {[%emt 0:11:26]} 10. gxf5 {[%emt 0:00:17]} Bxf5 {[%emt 0:00:19]} 11. Nxd5 {[%emt 0:00:10]} Be4 {[%emt 0:01:00]} 12. Nef4 {[%emt 0:28:10]} Bxh1 {[%emt 0:01:44]} 13. Qe2 {[%emt 0:02:01]} Qxh4+ {[%emt 0:01:16]} 14. Kd1 {[%emt 0:08:19]} Bxd5 {[%emt 0:00:42]} 15. Nxd5 {[%emt 0:12:36]} Qxd4+ {[%emt 0:00:37]} 16. Qd2 {[%emt 0:01:30]} Qxd2+ {[%emt 0:01:00]} 17. Bxd2 {[%emt 0:00:10]} O-O-O {[%emt 0:00:14]} 0-1